bitfinex/quotes_BTCUSD_20220204
["timestamp","ask_amount","ask_price","bid_price","bid_amount"]
[1643950506601,0.04100124,37360.0,37359.0,0.06693]
[1643950506799,0.04100124,37360.0,37359.0,0.06714274]
[1643950507751,0.04100124,37362.0,37359.0,0.06714274]
[1643950507952,0.34996,37363.0,37361.0,0.07592576]
[1643950508353,0.34996,37363.0,37361.0,0.066927]
[1643950508954,0.04100124,37362.0,37360.0,0.133853]
[1643950515949,0.34996,37361.0,37359.0,0.00021274]
[1643950516149,0.34996,37361.0,37358.0,0.00096631]
[1643950516348,0.23005322,37363.0,37358.0,0.00096631]
[1643950516551,0.64100124,37359.0,37358.0,0.00096631]
[1643950516753,0.04100124,37359.0,37358.0,0.00021274]
[1643950516950,0.04100124,37359.0,37358.0,0.00075356]
[1643950517353,0.04100124,37359.0,37358.0,0.0009663]
[1643950517751,0.04100124,37359.0,37358.0,0.00075356]
[1643950517954,0.04100124,37359.0,37356.0,0.00021274]
[1643950518150,0.04100124,37359.0,37357.0,0.00075357]
[1643950518402,0.23714685,37358.0,37357.0,0.00075357]
[1643950518602,0.04100124,37359.0,37357.0,0.00075357]
[1643950518803,0.04100124,37359.0,37357.0,0.00096631]
[1643950519001,0.04100124,37359.0,37357.0,0.00021274]
[1643950519406,0.04100124,37359.0,37356.0,0.06790431]
[1643950519603,0.19438469,37358.0,37356.0,0.06290431]
[1643950520204,0.04100124,37357.0,37356.0,0.00021274]
[1643950520406,0.04100124,37357.0,37355.0,0.34588177]
[1643950521108,0.04100124,37357.0,37355.0,0.00096632]
[1643950521507,0.04100124,37357.0,37354.0,0.00021274]
[1643950521706,0.19438469,37358.0,37354.0,0.00096633]
[1643950521910,0.69100124,37355.0,37354.0,0.00075359]
[1643950522164,0.04100124,37355.0,37354.0,0.00075359]
[1643950522364,0.04100124,37355.0,37354.0,0.00096633]
[1643950522566,0.03690112,37355.0,37354.0,0.00096633]
[1643950522764,0.03690112,37355.0,37354.0,0.00021274]
[1643950522966,0.03690112,37355.0,37353.0,0.60818179]
[1643950523164,0.21115304,37357.0,37353.0,0.60818179]
[1643950523365,0.21115304,37357.0,37354.0,0.066945]
[1643950523565,0.21115304,37357.0,37354.0,0.06715774]
[1643950523766,0.38690112,37355.0,37354.0,0.00021274]
[1643950523965,0.38690112,37355.0,37353.0,0.60742819]
[1643950524166,0.38690112,37355.0,37354.0,0.00075359]
[1643950524368,0.46100974,37355.0,37354.0,0.00096633]
[1643950524670,0.11100974,37355.0,37354.0,0.00096633]
[1643950525069,0.11100974,37355.0,37354.0,0.00021274]
[1643950525268,0.11100974,37355.0,37353.0,0.26326634]
[1643950526304,0.11100974,37355.0,37353.0,0.26251274]
[1643950526702,0.03690112,37355.0,37353.0,0.26251274]
[1643950528103,0.11607246,37355.0,37353.0,0.26251274]
[1643950529106,0.07917134,37355.0,37353.0,0.26251274]
[1643950529748,0.03690112,37354.0,37353.0,0.26251274]
[1643950529952,0.07917134,37355.0,37353.0,0.26251274]
[1643950530451,0.07917134,37355.0,37354.0,0.01309888]
[1643950530648,0.07917134,37355.0,37354.0,0.01331162]
[1643950530649,0.11607246,37355.0,37354.0,0.01331162]
[1643950532148,0.11607246,37355.0,37354.0,0.00021274]
[1643950532350,0.11607246,37355.0,37353.0,0.27505087]
[1643950532553,0.11607246,37355.0,37353.0,0.27580447]
[1643950532749,0.11607246,37355.0,37353.0,0.01406522]
[1643950533050,0.11607246,37355.0,37353.0,0.00096634]
[1643950533504,0.11607246,37355.0,37353.0,0.00021274]
[1643950533702,0.11607246,37355.0,37352.0,0.1346356]
[1643950534103,0.03690112,37353.0,37352.0,0.1346356]
[1643950534704,0.03690112,37353.0,37352.0,0.133882]
[1643950535110,0.29930992,37357.0,37352.0,0.14719362]
[1643950535306,0.29930992,37357.0,37354.0,0.08004388]
[1643950535507,0.21202495,37356.0,37354.0,0.066945]
[1643950535712,0.21202495,37356.0,37353.0,0.00021274]
[1643950536009,0.03690112,37354.0,37353.0,0.0007536]
[1643950536209,0.33690112,37354.0,37353.0,0.00096634]
[1643950536409,0.03690112,37354.0,37353.0,0.00096634]
[1643950537154,0.03690112,37354.0,37353.0,0.00021274]
[1643950537356,0.03690112,37354.0,37352.0,0.13463561]
[1643950538357,0.03690112,37354.0,37352.0,0.133882]
[1643950538855,0.03690112,37354.0,37352.0,0.13409474]
[1643950539456,0.03690112,37354.0,37352.0,0.14719362]
[1643950539655,0.03690112,37354.0,37352.0,0.14698088]
[1643950539856,0.03690112,37354.0,37352.0,0.14719362]
[1643950540260,0.03690112,37354.0,37352.0,0.13409474]
[1643950540658,0.03690112,37354.0,37353.0,0.84681331]
[1643950540907,0.03690112,37354.0,37353.0,0.83371443]
[1643950541309,0.03690112,37354.0,37353.0,0.83392717]
[1643950543608,0.2635892,37354.0,37353.0,0.83392717]
[1643950546958,0.2508884,37354.0,37353.0,0.83392717]
[1643950547757,0.6008484,37354.0,37353.0,0.83392717]
[1643950547964,0.7546484,37354.0,37353.0,0.83392717]
[1643950548158,0.7546484,37354.0,37353.0,0.83371443]
[1643950548603,0.7546484,37354.0,37353.0,0.83392717]
[1643950549005,0.8046484,37354.0,37353.0,0.83392717]
[1643950549207,0.7546484,37354.0,37353.0,0.83371443]
[1643950549607,0.7546484,37354.0,37353.0,0.83392717]
[1643950549806,0.9046484,37354.0,37353.0,0.83392717]
[1643950550007,0.9546484,37354.0,37353.0,0.83392717]
[1643950550412,0.9546484,37354.0,37353.0,0.83371443]
[1643950550807,0.9546484,37354.0,37353.0,0.83392717]
[1643950551008,1.5546484,37354.0,37353.0,0.83392717]
[1643950551810,1.5046484,37354.0,37353.0,0.83392717]
[1643950552253,0.9546484,37354.0,37353.0,0.83392717]
[1643950552954,1.3046484,37354.0,37353.0,0.83371443]
[1643950553158,1.3046484,37354.0,37353.0,0.83392717]
[1643950553754,1.3546484,37354.0,37353.0,0.83392717]
[1643950554155,1.3546484,37354.0,37353.0,0.83371443]
[1643950554555,1.3546484,37354.0,37353.0,0.83392717]
[1643950554754,0.9546484,37354.0,37353.0,0.83392717]
[1643950554957,1.0046484,37354.0,37353.0,0.83392717]
[1643950555356,1.0046484,37354.0,37353.0,0.83371443]
[1643950555812,1.0046484,37354.0,37353.0,0.83392717]
[1643950556004,0.8546484,37354.0,37353.0,0.83392717]
[1643950556405,1.0046484,37354.0,37353.0,0.83371443]
[1643950556808,1.0046484,37354.0,37353.0,0.83392717]
[1643950557005,2.4546484,37354.0,37353.0,0.83392717]
[1643950557204,2.4546484,37354.0,37353.0,0.8338276]
[1643950557205,2.68470162,37354.0,37353.0,0.8338276]
[1643950557405,2.4546484,37354.0,37353.0,0.8338276]
[1643950557606,2.4546484,37354.0,37353.0,0.83361486]
[1643950557805,2.4546484,37354.0,37353.0,0.8338276]
[1643950558005,0.79066112,37354.0,37353.0,0.8338276]
[1643950558204,0.73686112,37354.0,37353.0,0.8338276]
[1643950558410,0.9482618,37354.0,37353.0,0.8338276]
[1643950558806,0.9482618,37354.0,37353.0,0.83361486]
[1643950559008,1.9482618,37354.0,37353.0,0.83361486]
[1643950559206,1.9482618,37354.0,37353.0,0.8338276]
[1643950560050,1.9482618,37354.0,37353.0,0.83361486]
[1643950560454,1.9482618,37354.0,37353.0,0.8338276]
[1643950561261,0.9482618,37354.0,37353.0,0.83361486]
[1643950561655,0.9482618,37354.0,37353.0,0.8338276]
[1643950562455,2.5482618,37354.0,37353.0,0.21980015]
[1643950562655,2.5482618,37354.0,37353.0,0.21958741]
[1643950562656,2.4982618,37354.0,37353.0,0.21958741]
[1643950562857,2.4982618,37354.0,37353.0,0.21980015]
[1643950563056,0.8982618,37354.0,37353.0,0.21980015]
[1643950563605,0.8719538,37354.0,37353.0,0.21980015]
[1643950563902,1.4482618,37354.0,37353.0,0.21980015]
[1643950564703,1.4982618,37354.0,37353.0,0.21980015]
[1643950564904,1.4482618,37354.0,37353.0,0.21958741]
[1643950565404,0.8482618,37354.0,37353.0,0.21980015]
[1643950565604,0.6982618,37354.0,37353.0,0.21980015]
[1643950565804,1.1482618,37354.0,37353.0,0.21980015]
[1643950566003,1.2982618,37354.0,37353.0,0.21958741]
[1643950566505,1.2982618,37354.0,37353.0,0.21980015]
[1643950566905,1.1482618,37354.0,37353.0,0.21980015]
[1643950567155,1.2982618,37354.0,37353.0,0.21980015]
[1643950567357,1.2982618,37354.0,37353.0,0.21958741]
[1643950567555,1.3482618,37354.0,37353.0,0.21958741]
[1643950567756,1.1982618,37354.0,37353.0,0.21980015]
[1643950568256,1.3482618,37354.0,37353.0,0.21980015]
[1643950568456,1.3982618,37354.0,37353.0,0.21958741]
[1643950568858,1.3982618,37354.0,37353.0,0.21980015]
[1643950569657,1.3982618,37354.0,37353.0,0.21958741]
[1643950569856,1.3982618,37354.0,37353.0,0.21980015]
[1643950571012,0.9482618,37354.0,37353.0,0.21958741]
[1643950571211,0.7982618,37354.0,37353.0,0.21958741]
[1643950571415,0.7982618,37354.0,37353.0,0.21980015]
[1643950572011,0.7982618,37354.0,37353.0,0.21958741]
[1643950572412,0.7982618,37354.0,37353.0,0.21980015]
[1643950573215,0.7982618,37354.0,37353.0,0.21958741]
[1643950573715,0.7982618,37354.0,37353.0,0.21980015]
[1643950574116,0.7482618,37354.0,37353.0,0.21980015]
[1643950574317,0.48686112,37354.0,37353.0,0.21980015]
[1643950574554,0.70291013,37354.0,37353.0,0.21958741]
[1643950574958,0.70291013,37354.0,37353.0,0.21980015]
[1643950575658,0.70291013,37354.0,37353.0,0.21958741]
[1643950575958,0.70291013,37354.0,37353.0,0.21980015]
[1643950576958,0.70291013,37354.0,37353.0,0.21958741]
[1643950577160,0.48686112,37354.0,37353.0,0.21958741]
[1643950577559,0.6992405,37354.0,37353.0,0.21958741]
[1643950579007,0.48686112,37354.0,37353.0,0.21958741]
[1643950579207,0.69926472,37354.0,37353.0,0.21958741]
[1643950579405,0.91622372,37354.0,37353.0,0.21958741]
[1643950579607,1.01622372,37354.0,37353.0,0.21958741]
[1643950579806,1.51622372,37354.0,37353.0,0.21958741]
[1643950580006,1.01622372,37354.0,37353.0,0.21958741]
[1643950580408,1.24627694,37354.0,37353.0,0.21958741]
[1643950580809,0.96622372,37354.0,37353.0,0.21958741]
[1643950581409,1.19627694,37354.0,37353.0,0.21958741]
[1643950582767,1.24627694,37354.0,37353.0,0.21958741]
[1643950583369,1.17931794,37354.0,37353.0,0.21958741]
[1643950583568,0.94926472,37354.0,37353.0,0.21958741]
[1643950584770,0.89926472,37354.0,37353.0,0.21958741]
[1643950585906,0.94926472,37354.0,37353.0,0.21958741]
[1643950586109,1.17931794,37354.0,37353.0,0.21958741]
[1643950587308,1.17937517,37354.0,37353.0,0.21958741]
[1643950588609,1.12937517,37354.0,37353.0,0.21958741]
[1643950589010,0.89926472,37354.0,37353.0,0.21958741]
[1643950590057,0.15,37351.0,37349.0,0.00021274]
[1643950590258,0.34996,37350.0,37348.0,0.02091761]
[1643950590556,0.38686112,37350.0,37348.0,0.02091761]
[1643950590759,0.48686112,37350.0,37348.0,0.02091761]
[1643950591358,1.73222088,37349.0,37348.0,0.02091761]
[1643950591556,2.08218088,37349.0,37348.0,0.02113035]
[1643950591755,2.18218088,37349.0,37348.0,0.02113035]
[1643950591958,2.18218088,37349.0,37348.0,0.00021274]
[1643950592159,1.13218088,37349.0,37347.0,0.00070162]
[1643950592356,1.57388986,37348.0,37345.0,0.00021274]
[1643950592557,0.80409291,37348.0,37344.0,0.23017037]
[1643950592756,0.67388986,37348.0,37344.0,0.23038362]
[1643950593509,0.25921049,37345.0,37344.0,0.23038362]
[1643950593710,0.25921049,37345.0,37344.0,0.231085]
[1643950594709,0.25921049,37345.0,37344.0,0.23038362]
[1643950596613,0.05,37345.0,37344.0,0.23038362]
[1643950597659,0.30687023,37345.0,37344.0,0.23038362]
[1643950598564,0.30687023,37345.0,37344.0,0.23017037]
[1643950598762,0.30687023,37345.0,37343.0,0.23108505]
[1643950598962,0.30687023,37345.0,37344.0,0.00021325]
[1643950599363,0.30687023,37345.0,37343.0,0.23108505]
[1643950599567,0.30687023,37345.0,37343.0,0.23038362]
[1643950599765,0.30687023,37345.0,37343.0,0.23108505]
[1643950600665,0.30687023,37345.0,37343.0,0.23038362]
[1643950602113,0.30687023,37345.0,37343.0,0.23017037]
[1643950602309,0.27212763,37343.0,37342.0,0.23066969]
[1643950602510,0.27212763,37343.0,37342.0,0.23045644]
[1643950603214,0.27212763,37343.0,37341.0,0.23038362]
[1643950603413,0.45,37342.0,37341.0,0.23045645]
[1643950603615,0.05,37342.0,37341.0,0.00028608]
[1643950603815,0.05,37342.0,37341.0,0.23066629]
[1643950604415,0.05,37342.0,37341.0,0.23038021]
[1643950606060,0.14945563,37342.0,37341.0,0.23038021]
[1643950606459,0.14945563,37342.0,37341.0,0.00021325]
[1643950606660,0.27212763,37343.0,37340.0,0.3548776]
[1643950606860,0.27212763,37343.0,37342.0,0.23013754]
[1643950607561,0.27212763,37343.0,37342.0,0.23035079]
[1643950611123,0.35472064,37345.0,37342.0,0.06717225]
[1643950611322,0.35472064,37345.0,37343.0,0.2301202]
[1643950611523,0.00452053,37346.0,37344.0,0.04547947]
[1643950611925,0.00452053,37346.0,37344.0,0.04569272]
[1643950612160,0.23188365,37345.0,37344.0,0.04569272]
[1643950613161,0.23188365,37345.0,37344.0,0.11265172]
[1643950615261,0.44695088,37345.0,37344.0,0.11265172]
[1643950615663,0.44695088,37345.0,37344.0,0.04569272]
[1643950615910,0.23188365,37345.0,37344.0,0.04569272]
[1643950616510,0.23188365,37345.0,37344.0,0.04547947]
[1643950616912,0.38772818,37352.0,37344.0,0.34277092]
[1643950616913,0.49525684,37350.0,37344.0,0.34277092]
[1643950617114,0.00452053,37349.0,37346.0,0.23008829]
[1643950617313,0.27773328,37350.0,37348.0,0.04547947]
[1643950617513,0.23020305,37354.0,37349.0,0.07555338]
[1643950617717,0.51793123,37357.0,37353.0,0.04547947]
[1643950617914,0.34996,37357.0,37356.0,0.11241247]
[1643950618114,0.35448053,37357.0,37356.0,0.11241247]
[1643950618915,0.35448053,37357.0,37356.0,0.066933]
[1643950619570,0.23020305,37361.0,37356.0,0.735454]
[1643950619772,0.00075085,37364.0,37360.0,0.04547947]
[1643950619773,0.23020305,37362.0,37360.0,0.04547947]
[1643950619971,0.34996,37362.0,37361.0,0.04547947]
[1643950620376,0.22544676,37364.0,37361.0,0.04547947]
[1643950620569,0.22544676,37364.0,37363.0,0.04547947]
[1643950620771,0.57540676,37364.0,37363.0,0.04547947]
[1643950621168,0.80937947,37364.0,37363.0,0.04547947]
[1643950621368,0.8919245,37364.0,37363.0,0.04547947]
[1643950621567,0.8919245,37364.0,37361.0,0.11240447]
[1643950621768,0.34996,37363.0,37361.0,0.066925]
[1643950621968,0.34996,37363.0,37362.0,0.04547947]
[1643950622572,0.9,37362.0,37358.0,0.00075104]
[1643950622872,0.02121356,37359.0,37358.0,0.00075104]
[1643950623322,0.02121356,37359.0,37358.0,0.06768404]
[1643950623518,0.02121356,37359.0,37358.0,0.066933]
[1643950624119,1.54996,37358.0,37357.0,0.00075102]
[1643950624318,0.34996,37358.0,37357.0,0.00075102]
[1643950624717,0.39996,37358.0,37356.0,0.066943]
[1643950624916,0.39996,37358.0,37356.0,0.06769403]
[1643950625117,0.39996,37358.0,37356.0,0.00075103]
[1643950625118,0.75114705,37358.0,37356.0,0.00075103]
[1643950625916,0.75114705,37358.0,37351.0,0.39749194]
[1643950626117,0.35118705,37358.0,37355.0,0.00075103]
[1643950626318,0.34996,37357.0,37355.0,0.00075103]
[1643950626919,1.5,37356.0,37355.0,0.00075103]
[1643950627160,1.5,37356.0,37349.0,0.23468829]
[1643950627161,0.05,37356.0,37349.0,0.0046]
[1643950627360,0.5813901,37358.0,37354.0,0.00075104]
[1643950627562,1.54996,37355.0,37354.0,0.00075104]
[1643950627962,0.34996,37355.0,37354.0,0.00075104]
[1643950628163,0.84496,37355.0,37354.0,0.00575104]
[1643950628361,0.84496,37355.0,37347.0,0.00021325]
[1643950628571,1.145,37348.0,37347.0,0.00021325]
[1643950628762,1.145,37348.0,37342.0,0.5471]
[1643950628763,1.49456352,37348.0,37345.0,0.00521325]
[1643950628960,0.0538,37347.0,37346.0,0.005]
[1643950629161,1.49876,37347.0,37346.0,0.005]
[1643950629364,1.82407364,37347.0,37346.0,0.005]
[1643950629560,2.17412652,37347.0,37346.0,0.005]
[1643950629759,2.25696345,37347.0,37345.0,0.00075111]
[1643950630820,1.20696345,37347.0,37341.0,0.00021325]
[1643950631013,0.34996,37346.0,37344.0,0.00075112]
[1643950631412,0.44996,37346.0,37344.0,0.00075112]
[1643950632015,0.44996,37346.0,37343.0,0.00021325]
[1643950632215,0.44996,37346.0,37343.0,0.00075112]
[1643950632416,0.44996,37346.0,37343.0,0.00096437]
[1643950632817,0.845,37344.0,37343.0,0.00096437]
[1643950633017,1.19496,37344.0,37343.0,0.00096437]
[1643950633217,0.39496,37344.0,37343.0,0.00021325]
[1643950633420,0.39496,37344.0,37342.0,0.06771814]
[1643950633616,0.045,37344.0,37342.0,0.06771814]
[1643950634217,0.045,37343.0,37342.0,0.06771814]
[1643950634420,0.045,37343.0,37342.0,0.066967]
[1643950634862,0.045,37343.0,37342.0,0.06718025]
[1643950635565,0.395,37343.0,37342.0,0.06718025]
[1643950635864,0.045,37343.0,37342.0,0.06718025]
[1643950636963,0.045,37344.0,37342.0,0.06718025]
[1643950637565,0.045,37344.0,37342.0,0.00021325]
[1643950637768,0.045,37344.0,37341.0,0.00575114]
[1643950637965,0.81200345,37347.0,37341.0,0.005]
[1643950638318,0.81200345,37347.0,37341.0,0.00549933]
[1643950638319,0.445,37342.0,37341.0,0.00549933]
[1643950638516,0.44457,37342.0,37341.0,0.00571608]
[1643950638719,0.2026901,37342.0,37341.0,0.00571608]
[1643950639114,0.2472601,37342.0,37341.0,0.00543]
[1643950639316,0.2026901,37342.0,37341.0,0.00543]
[1643950639516,0.2026901,37342.0,37341.0,0.00564325]
[1643950641020,0.81200345,37347.0,37341.0,0.00564325]
[1643950641224,0.04457,37346.0,37342.0,0.066964]
[1643950641418,0.04457,37344.0,37342.0,0.06717725]
[1643950641820,0.04457,37344.0,37342.0,0.06792771]
[1643950642067,0.24315297,37343.0,37342.0,0.06792771]
[1643950642871,0.24315297,37343.0,37342.0,0.06717725]
[1643950645374,0.24315297,37343.0,37342.0,0.066964]
[1643950645814,0.24315297,37343.0,37342.0,0.06717725]
[1643950646612,0.24315297,37343.0,37342.0,0.066964]
[1643950646812,0.24315297,37343.0,37342.0,0.06717725]
[1643950647214,0.28772297,37343.0,37342.0,0.06717725]
[1643950649023,0.88772297,37343.0,37342.0,0.00021325]
[1643950649219,0.88772297,37343.0,37341.0,0.74220378]
[1643950649419,0.98772297,37343.0,37341.0,0.74220378]
[1643950649862,0.0538,37342.0,37341.0,0.74220378]
[1643950650062,1.55376,37342.0,37341.0,0.74145331]
[1643950650463,1.70376,37342.0,37341.0,0.74166656]
[1643950650865,1.41361492,37342.0,37341.0,0.74166656]
[1643950651463,1.41361492,37342.0,37341.0,0.74145331]
[1643950651865,0.44996,37342.0,37341.0,0.74166656]
[1643950652065,0.72584105,37342.0,37341.0,0.74166656]
[1643950652465,2.22584105,37342.0,37341.0,0.12758061]
[1643950652666,2.22584105,37342.0,37341.0,0.12736736]
[1643950652667,0.72584105,37342.0,37341.0,0.12736736]
[1643950652865,1.07584105,37342.0,37341.0,0.12736736]
[1643950653168,1.07584105,37342.0,37341.0,0.12758051]
[1643950653414,0.72584105,37342.0,37341.0,0.12758051]
[1643950653810,0.72584105,37342.0,37341.0,0.12736736]
[1643950654319,0.72584105,37342.0,37341.0,0.00021315]
[1643950654320,2.42584105,37342.0,37341.0,0.00021315]
[1643950654513,2.04996,37341.0,37340.0,0.00075048]
[1643950654710,2.04996,37341.0,37337.0,0.00021315]
[1643950654711,2.15376,37341.0,37337.0,0.00021315]
[1643950654913,0.04457,37338.0,37336.0,0.01932868]
[1643950655214,1.08316867,37337.0,37336.0,0.01932868]
[1643950655414,1.18316867,37337.0,37336.0,0.01911553]
[1643950655616,1.18316867,37337.0,37334.0,0.00021315]
[1643950655818,0.83320867,37337.0,37333.0,0.0013577]
[1643950656016,0.83320867,37337.0,37333.0,0.00021315]
[1643950656217,0.32361229,37335.0,37334.0,0.00028613]
[1643950656415,0.14457,37335.0,37334.0,0.00028613]
[1643950656821,0.3589621,37335.0,37334.0,0.00028613]
[1643950657063,0.3589621,37335.0,37334.0,0.00049928]
[1643950657264,0.3589621,37335.0,37334.0,0.00021315]
[1643950657468,0.2589621,37335.0,37333.0,0.07337601]
[1643950657663,0.3589621,37335.0,37333.0,0.07337601]
[1643950657866,0.2147933,37334.0,37333.0,0.07316286]
[1643950658166,0.34996,37334.0,37333.0,0.06773286]
[1643950658365,0.44996,37334.0,37333.0,0.06719615]
[1643950658565,0.1,37334.0,37333.0,0.06719615]
[1643950659166,0.04457,37335.0,37333.0,0.06719615]
[1643950659167,0.23754509,37337.0,37333.0,0.06719615]
[1643950659370,0.23754509,37337.0,37336.0,0.00543]
[1643950659866,0.23754509,37337.0,37336.0,0.00564315]
[1643950660267,0.28465891,37341.0,37338.0,0.21171245]
[1643950660468,0.63461891,37341.0,37340.0,0.00543]
[1643950660668,0.67918891,37341.0,37340.0,0.00543]
[1643950660914,0.89741844,37341.0,37339.0,0.00021315]
[1643950661115,0.56361586,37340.0,37339.0,0.00096296]
[1643950661313,0.34996,37340.0,37339.0,0.00074981]
[1643950661813,0.34996,37340.0,37339.0,0.00096296]
[1643950662017,0.34996,37340.0,37339.0,0.00021315]
[1643950662215,0.34996,37340.0,37338.0,0.06793097]
[1643950662415,0.04457,37339.0,37338.0,0.06793097]
[1643950662625,0.32922891,37341.0,37338.0,0.00639297]
[1643950662816,0.63465891,37341.0,37340.0,0.00543]
[1643950663019,0.98461891,37341.0,37340.0,0.00543]
[1643950663215,0.63461891,37341.0,37340.0,0.00543]
[1643950663417,0.67918891,37341.0,37340.0,0.00543]
[1643950663616,0.63461891,37341.0,37340.0,0.00021315]
[1643950663815,0.67918891,37341.0,37339.0,0.00096296]
[1643950664017,0.89996,37340.0,37339.0,0.00096296]
[1643950664216,0.34996,37340.0,37339.0,0.00096296]
[1643950664417,0.34996,37340.0,37339.0,0.00021315]
[1643950664663,0.34996,37340.0,37338.0,0.00074982]
[1643950665060,0.39457,37339.0,37338.0,0.00074982]
[1643950665262,0.04457,37339.0,37338.0,0.00096297]
[1643950665463,0.39453,37339.0,37338.0,0.00096297]
[1643950665661,0.34996,37339.0,37337.0,0.00021315]
[1643950665861,0.34996,37339.0,37337.0,0.13468783]
[1643950666061,0.34996,37339.0,37338.0,0.00543]
[1643950666263,0.39453,37339.0,37338.0,0.00543]
[1643950666663,0.61779728,37339.0,37338.0,0.00564315]
[1643950667166,0.61779728,37339.0,37338.0,0.00021315]
[1643950667363,0.61779728,37339.0,37337.0,0.13490098]
[1643950667964,0.61779728,37339.0,37337.0,0.13415115]
[1643950668165,0.34996,37339.0,37337.0,0.13415115]
[1643950668425,0.28465891,37341.0,37338.0,0.00543]
[1643950668623,0.63461891,37341.0,37340.0,0.00543]
[1643950669226,0.63461891,37341.0,37340.0,0.21811221]
[1643950669623,0.63461891,37341.0,37340.0,0.21832536]
[1643950670622,0.63461891,37341.0,37340.0,0.21811221]
[1643950670823,0.63461891,37341.0,37340.0,0.21832536]
[1643950671024,0.63461891,37341.0,37340.0,0.21289536]
[1643950671225,0.63461891,37341.0,37340.0,0.00021315]
[1643950671424,0.63461891,37341.0,37339.0,0.00096296]
[1643950671624,0.34996,37340.0,37339.0,0.00021315]
[1643950671827,0.39453,37340.0,37338.0,0.06792496]
[1643950672265,0.39453,37340.0,37338.0,0.29801325]
[1643950672474,0.04457,37340.0,37338.0,0.29801325]
[1643950672666,0.04457,37340.0,37338.0,0.06792496]
[1643950672868,0.04457,37340.0,37338.0,0.06717515]
[1643950673266,0.04457,37340.0,37338.0,0.29726344]
[1643950673466,0.04457,37339.0,37338.0,0.29726344]
[1643950673767,0.28465891,37341.0,37338.0,0.06717515]
[1643950673966,0.04457,37339.0,37338.0,0.06717515]
[1643950674468,0.04457,37339.0,37338.0,0.06792497]
[1643950675268,0.04457,37339.0,37338.0,0.06717515]
[1643950676125,0.54457,37339.0,37338.0,0.00021315]
[1643950676325,0.04457,37339.0,37337.0,0.42802733]
[1643950676523,0.28465891,37341.0,37337.0,0.4718475]
[1643950676524,0.14006278,37341.0,37337.0,0.4718475]
[1643950676824,0.14006278,37341.0,37340.0,0.05]
[1643950677023,0.34996,37340.0,37339.0,0.23012569]
[1643950677223,0.34996,37340.0,37339.0,0.53318017]
[1643950677422,0.14006278,37341.0,37339.0,0.53318017]
[1643950677823,0.14006278,37341.0,37339.0,0.28012569]
[1643950678026,0.34996,37340.0,37339.0,0.28033884]
[1643950678625,0.34996,37340.0,37339.0,0.23033884]
[1643950680765,0.34996,37340.0,37339.0,0.28033884]
[1643950680966,0.14006278,37341.0,37339.0,0.28033884]
[1643950681365,0.14006278,37341.0,37339.0,0.23033884]
[1643950682465,0.28849753,37344.0,37339.0,0.00021315]
[1643950682665,0.22893038,37341.0,37339.0,0.23013328]
[1643950682868,0.34996,37340.0,37339.0,0.00021315]
[1643950683318,0.34996,37340.0,37338.0,0.29806357]
[1643950683514,0.34996,37340.0,37338.0,0.06793029]
[1643950683715,0.34996,37340.0,37338.0,0.06718115]
[1643950684918,0.34996,37340.0,37338.0,0.29731443]
[1643950685119,0.34996,37340.0,37338.0,0.06718115]
[1643950685715,0.3480423,37340.0,37338.0,0.06718115]
[1643950686318,0.3480423,37340.0,37338.0,0.29731443]
[1643950686517,0.3480423,37340.0,37338.0,0.06718115]
[1643950686718,0.3480423,37340.0,37338.0,0.29731443]
[1643950687365,0.3480423,37340.0,37338.0,0.34731443]
[1643950687568,0.34729312,37340.0,37338.0,0.34731443]
[1643950688366,0.34729312,37340.0,37338.0,0.29731443]
[1643950689369,0.34729312,37340.0,37338.0,0.06718115]
[1643950689567,0.34729312,37340.0,37338.0,0.29731443]
[1643950689966,0.34729312,37340.0,37338.0,0.11718115]
[1643950690567,0.34729312,37340.0,37338.0,0.34731443]
[1643950690817,0.34729312,37340.0,37338.0,0.11718115]
[1643950691217,0.34729312,37340.0,37338.0,0.29731443]
[1643950691620,0.34729312,37340.0,37338.0,0.06718115]
[1643950694219,0.34729312,37340.0,37338.0,0.11718115]
[1643950694421,0.34729312,37340.0,37339.0,0.74823367]
[1643950694670,0.34729312,37340.0,37339.0,0.74844682]
[1643950701414,0.349969,37340.0,37339.0,0.74844682]
[1643950706523,0.403769,37340.0,37339.0,0.74844682]
[1643950708925,0.403769,37340.0,37339.0,0.74823367]
[1643950712568,1.653769,37340.0,37339.0,0.13420072]
[1643950712771,0.403769,37340.0,37339.0,0.13420072]
[1643950720817,0.349969,37340.0,37339.0,0.13420072]
[1643950721820,0.349969,37340.0,37339.0,0.32638228]
[1643950722021,0.349969,37340.0,37339.0,0.13420072]
[1643950727469,0.68007802,37340.0,37339.0,0.13420072]
[1643950728520,0.44997,37340.0,37339.0,0.13420072]
[1643950732577,0.85847918,37340.0,37339.0,0.13420072]
[1643950732777,0.91602481,37340.0,37339.0,0.13420072]
[1643950732977,0.34997,37338.0,37335.0,0.00021315]
[1643950733178,0.0538,37337.0,37334.0,0.02054886]
[1643950733582,1.72488044,37335.0,37334.0,0.02033571]
[1643950733779,0.97992238,37335.0,37334.0,0.02033571]
[1643950734079,0.34997,37334.0,37333.0,0.00021315]
[1643950734378,0.40377,37334.0,37333.0,0.00074918]
[1643950734579,0.40377,37334.0,37333.0,0.00096233]
[1643950735179,0.58364802,37334.0,37333.0,0.00021315]
[1643950735379,0.42055489,37334.0,37332.0,0.06774019]
[1643950735581,0.52055489,37334.0,37332.0,0.06774019]
[1643950736421,0.52055489,37334.0,37332.0,0.066991]
[1643950736921,0.45356389,37334.0,37332.0,0.06720415]
[1643950737820,0.45356389,37334.0,37332.0,0.066991]
[1643950738225,0.45356389,37334.0,37332.0,0.06720415]
[1643950739222,0.45356389,37334.0,37332.0,0.066991]
[1643950739423,0.45356389,37334.0,37332.0,0.06720415]
[1643950739670,0.52055489,37334.0,37332.0,0.06720415]
[1643950740274,0.35356389,37334.0,37332.0,0.06720415]
[1643950740872,0.449994,37334.0,37332.0,0.06720415]
[1643950741571,0.449994,37334.0,37332.0,0.066991]
[1643950741970,0.449994,37334.0,37332.0,0.06720415]
[1643950742471,0.15198029,37328.0,37326.0,0.90526124]
[1643950742673,0.449994,37334.0,37327.0,0.01998109]
[1643950742674,0.349994,37330.0,37327.0,0.01998109]
[1643950742874,0.0538,37329.0,37327.0,0.01998109]
[1643950743070,0.0538,37329.0,37328.0,0.349994]
[1643950744829,0.15303004,37329.0,37328.0,0.349994]
[1643950747271,0.20303004,37329.0,37328.0,0.349994]
[1643950748470,0.1038,37329.0,37328.0,0.349994]
[1643950750071,0.0538,37329.0,37328.0,0.349994]
[1643950750374,0.1038,37329.0,37328.0,0.349994]
[1643950752119,0.0538,37329.0,37328.0,0.349994]
[1643950757575,0.1,37332.0,37328.0,0.349994]
[1643950757777,0.22989619,37334.0,37328.0,0.36673891]
[1643950757778,0.0538,37331.0,37328.0,0.36673891]
[1643950757976,0.0538,37331.0,37328.0,0.36695135]